Workbook

Sheet Title
M7: 2165
A25: Image credit: HeungSoon / Pixabay

Sheet Question
A1: 98
A2: 95
A3: 105
A4: 91
A5: 113
A6: 97
A7: 110
A8: 93
A9: 113
A10: 96
A11: 95
A12: 98
A13: 114
A14: 115
A15: 89
A16: 95 | E16: Last 20
A17: 114 | E17: Lowest 10
A18: 92 | E18: Average
A19: 100
A20: 107 | B20: =MIN(A1:A20) -> 89
A21: 105 | B21: =MIN(A2:A21) -> 89
A22: 113 | B22: 89
A23: 111 | B23: 89
A24: 95 | B24: 89
A25: 94 | B25: 89
A26: 94 | B26: 89
A27: 106 | B27: 89
A28: 115 | B28: 89
A29: 89 | B29: 89
A30: 112 | B30: 89
A31: 98 | B31: 89
A32: 91 | B32: 89
A33: 96 | B33: 89
A34: 90 | B34: 89
A35: 96 | B35: 89
A36: 107 | B36: 89
A37: 96 | B37: 89
A38: 89 | B38: 89
A39: 91 | B39: 89
A40: 113 | B40: 89
A41: 94 | B41: 89

Sheet 2nd Smallest
A1: 98
A2: 95
A3: 105
A4: 91
A5: 113
A6: 97
A7: 110
A8: 93
A9: 113
A10: 96
A11: 95
A12: 98
A13: 114
A14: 115
A15: 89
A16: 95 | E16: Last 20
A17: 114 | E17: Lowest 10
A18: 92 | E18: Average
A19: 100
A20: 107 | B20: =SMALL(A1:A20,2) -> 91 | C20: =_xlfn.FORMULATEXT(B20) -> =SMALL(A1:A20,2)
A21: 105
A22: 113
A23: 111
A24: 95
A25: 94
A26: 94
A27: 106
A28: 115
A29: 89
A30: 112
A31: 98
A32: 91
A33: 96
A34: 90
A35: 96
A36: 107
A37: 96
A38: 89
A39: 91
A40: 113
A41: 94

Sheet Tempting
A1: 98
A2: 95
A3: 105
A4: 91
A5: 113
A6: 97
A7: 110
A8: 93
A9: 113
A10: 96
A11: 95
A12: 98
A13: 114
A14: 115
A15: 89
A16: 95
A17: 114
A18: 92
A19: 100 | E19: =_xlfn.FORMULATEXT(B20) -> =(SMALL(A1:A20,1)+SMALL(A1:A20,2)+SMALL(A1:A20,3)+SMALL(A1:A20,4)+SMALL(A1:A20,5)+SMALL(A1:A20,6)+SMALL(A1:A20,7)+SMALL(A1:A20,8)+SMALL(A1:A20,9)+SMALL(A1:A20,10))/10
A20: 107 | B20: =(SMALL(A1:A20,1)+SMALL(A1:A20,2)+SMALL(A1:A20,3)+SMALL(A1:A20,4)+SMALL(A1:A20,5)+SMALL(A1:A20,6)+SMALL(A1:A20,7)+SMALL(A1:A20,8)+SMALL(A1:A20,9)+SMALL(A1:A20,10))/10 -> 94.1
A21: 105 | B21: =(SMALL(A2:A21,1)+SMALL(A2:A21,2)+SMALL(A2:A21,3)+SMALL(A2:A21,4)+SMALL(A2:A21,5)+SMALL(A2:A21,6)+SMALL(A2:A21,7)+SMALL(A2:A21,8)+SMALL(A2:A21,9)+SMALL(A2:A21,10))/10 -> 94.1
A22: 113 | B22: 94.6
A23: 111 | B23: 94.6
A24: 95 | B24: 95
A25: 94 | B25: 94.4
A26: 94 | B26: 94.1
A27: 106 | B27: 94.1
A28: 115 | B28: 94.8
A29: 89 | B29: 93.7
A30: 112 | B30: 94.1
A31: 98 | B31: 94.4
A32: 91 | B32: 93.7
A33: 96 | B33: 93.3
A34: 90 | B34: 92.5
A35: 96 | B35: 93.2
A36: 107 | B36: 93.5
A37: 96 | B37: 93.3
A38: 88 | B38: 92.9
A39: 88 | B39: 92.1
A40: 88 | B40: 91.3
A41: 94 | B41: 91.1

Sheet Lowest10
A1: 98
A2: 95
A3: 105
A4: 91
A5: 113
A6: 97
A7: 110
A8: 93
A9: 113
A10: 96
A11: 95
A12: 98
A13: 114
A14: 115 | F14: 1 | I14: 1
A15: 89 | F15: 2 | I15: 2
A16: 95 | F16: 3 | I16: 3
A17: 114 | F17: 4 | I17: 4
A18: 92 | F18: 5 | I18: 5
A19: 100 | F19: 6 | I19: 6
A20: 107 | B20: =AVERAGE(SMALL(A1:A20,{1;2;3;4;5;6;7;8;9;10})) -> 94.1 | F20: 7 | I20: 7
A21: 105 | B21: =AVERAGE(SMALL(A2:A21,{1;2;3;4;5;6;7;8;9;10})) -> 94.1 | F21: 8 | I21: 8
A22: 113 | B22: =AVERAGE(SMALL(A3:A22,{1;2;3;4;5;6;7;8;9;10})) -> 94.6 | F22: 9 | I22: 9
A23: 111 | B23: =AVERAGE(SMALL(A4:A23,{1;2;3;4;5;6;7;8;9;10})) -> 94.6 | F23: 10 | I23: 10
A24: 95 | B24: =AVERAGE(SMALL(A5:A24,{1;2;3;4;5;6;7;8;9;10})) -> 95
A25: 94 | B25: =AVERAGE(SMALL(A6:A25,{1;2;3;4;5;6;7;8;9;10})) -> 94.4
A26: 94 | B26: =AVERAGE(SMALL(A7:A26,{1;2;3;4;5;6;7;8;9;10})) -> 94.1
A27: 106 | B27: =AVERAGE(SMALL(A8:A27,{1;2;3;4;5;6;7;8;9;10})) -> 94.1
A28: 115 | B28: =AVERAGE(SMALL(A9:A28,{1;2;3;4;5;6;7;8;9;10})) -> 94.8
A29: 89 | B29: =AVERAGE(SMALL(A10:A29,{1;2;3;4;5;6;7;8;9;10})) -> 93.7
A30: 112 | B30: =AVERAGE(SMALL(A11:A30,{1;2;3;4;5;6;7;8;9;10})) -> 94.1
A31: 98 | B31: =AVERAGE(SMALL(A12:A31,{1;2;3;4;5;6;7;8;9;10})) -> 94.4
A32: 91 | B32: =AVERAGE(SMALL(A13:A32,{1;2;3;4;5;6;7;8;9;10})) -> 93.7
A33: 96 | B33: =AVERAGE(SMALL(A14:A33,{1;2;3;4;5;6;7;8;9;10})) -> 93.3
A34: 90 | B34: =AVERAGE(SMALL(A15:A34,{1;2;3;4;5;6;7;8;9;10})) -> 92.5
A35: 96 | B35: =AVERAGE(SMALL(A16:A35,{1;2;3;4;5;6;7;8;9;10})) -> 93.2
A36: 107 | B36: =AVERAGE(SMALL(A17:A36,{1;2;3;4;5;6;7;8;9;10})) -> 93.5
A37: 96 | B37: =AVERAGE(SMALL(A18:A37,{1;2;3;4;5;6;7;8;9;10})) -> 93.3
A38: 89 | B38: =AVERAGE(SMALL(A19:A38,{1;2;3;4;5;6;7;8;9;10})) -> 93
A39: 91 | B39: =AVERAGE(SMALL(A20:A39,{1;2;3;4;5;6;7;8;9;10})) -> 92.5
A40: 113 | B40: =AVERAGE(SMALL(A21:A40,{1;2;3;4;5;6;7;8;9;10})) -> 92.5
A41: 94 | B41: =AVERAGE(SMALL(A22:A41,{1;2;3;4;5;6;7;8;9;10})) -> 92.3

Sheet Wrap Up
A1: Topics in this Episode
B3: How to calculate a Golf Handicap in Excel
B4: You have your recent golf scores in Excel
B5: The handicap is the average of the lowest 10 scores in the last 20 rounds
B6: Getting the last 20 is easy thanks to Excel
B7: Getting the smallest using MIN
B8: But… to get the 2nd smallest through 10th smallest, use SMALL() function.
B9: Slow but understandable: =SMALL(,1)+SMALL(,2)+SMALL(,3)…+SMALL(,10) divided by 10
B10: Easier to enter: Array constant {1;2;3;4;5;6;7;8;9;10} as the second argument of SMALL
B11: This will return all 10 values at once
B12: Send that in to the AVERGE function: =AVERAGE(SMALL(A1:A20,{1;2;3;4;5;6;7;8;9;10}))
B13: My fast way for typing the array constant: Type a 1 in a cell. Ctrl+Drag the fill handle from the 1 down to get 2 through 10.
B14: Point a formula at the ten numbers and press F9, then Ctrl+C to copy
